bitfinex-derivatives/quotes_BNBF0:USTF0_20250111
["timestamp","ask_amount","ask_price","bid_price","bid_amount"]
[1736601020350,1.07547235,696.83,695.65,0.28750089]
[1736601022546,1.07547235,696.82,695.65,0.28750089]
[1736601023949,1.07547235,696.83,695.65,0.28750089]
[1736601024953,1.07547235,696.79,695.65,0.28750089]
[1736601028248,1.07547235,696.84,695.65,0.28750089]
[1736601029055,1.07547235,696.83,695.65,0.28750089]
[1736601030457,1.07547235,696.81,695.65,0.28750089]
[1736601031352,1.07547235,696.83,695.65,0.28750089]
[1736601033260,1.07547235,696.86,695.65,0.28750089]
[1736601034158,1.07547235,696.92,695.65,0.28750089]
[1736601035160,1.07547235,696.88,695.65,0.28750089]
[1736601035961,1.07547235,696.86,695.65,0.28750089]
[1736601038361,1.07547235,696.83,695.65,0.28750089]
[1736601040167,1.07547235,696.82,695.65,0.28750089]
[1736601041163,1.07547235,696.81,695.65,0.28750089]
[1736601043168,1.07547235,696.84,695.65,0.28750089]
[1736601044168,1.07547235,696.78,695.65,0.28750089]
[1736601046465,1.07547235,696.83,695.65,0.28750089]
[1736601047562,1.36125165,697.01,695.65,0.28750089]
[1736601047563,1.07547235,696.84,695.65,0.28750089]
[1736601048964,0.28693992,697.01,695.65,0.28750089]
[1736601055372,1.07547235,697.15,695.65,0.28750089]
[1736601055569,1.07547235,697.17,695.65,0.28750089]
[1736601056772,1.07547235,697.2,695.65,0.28750089]
[1736601057867,1.07547235,697.25,695.65,0.28750089]
[1736601058974,1.07547235,697.32,695.65,0.28750089]
[1736601059171,0.26376793,697.31,695.65,0.28750089]
[1736601059670,1.07547235,697.32,695.65,0.28750089]
[1736601059869,1.07547235,697.33,695.65,0.28750089]
[1736601060974,1.07547235,697.35,695.65,0.28750089]
[1736601061975,0.26376355,697.34,695.65,0.28750089]
[1736601062174,0.26376355,697.37,695.65,0.28750089]
[1736601062368,0.26376339,697.36,695.65,0.28750089]
[1736601062576,0.26376339,697.35,695.65,0.28750089]
[1736601062874,0.26376339,697.34,695.65,0.28750089]
[1736601063075,0.26376339,697.33,695.65,0.28750089]
[1736601063275,1.07547235,697.39,695.65,0.28750089]
[1736601063476,0.26376024,697.38,695.65,0.28750089]
[1736601063977,1.33923259,697.38,695.65,0.28750089]
[1736601064171,0.26376024,697.37,695.65,0.28750089]
[1736601064374,0.26376247,697.36,695.65,0.28750089]
[1736601064574,0.26376247,697.35,695.65,0.28750089]
[1736601064775,0.26376247,697.34,695.65,0.28750089]
[1736601064975,0.26376247,697.33,695.65,0.28750089]
[1736601065178,1.07547235,697.41,695.65,0.28750089]
[1736601065378,0.26376088,697.4,695.65,0.28750089]
[1736601065578,0.26376088,697.39,695.65,0.28750089]
[1736601065879,0.26376088,697.38,695.65,0.28750089]
[1736601066073,0.26376088,697.37,695.65,0.28750089]
[1736601066278,1.07547235,697.42,695.65,0.28750089]
[1736601066279,0.26376088,697.36,695.65,0.28750089]
[1736601066479,0.26376088,697.35,695.65,0.28750089]
[1736601066780,0.26376088,697.34,695.65,0.28750089]
[1736601066980,0.26376088,697.41,695.65,0.28750089]
[1736601067177,0.26376088,697.4,695.65,0.28750089]
[1736601067378,0.26376088,697.39,695.65,0.28750089]
[1736601067578,0.26376088,697.38,695.65,0.28750089]
[1736601067779,0.26376088,697.37,695.65,0.28750089]
[1736601067981,0.26376088,697.36,695.65,0.28750089]
[1736601068182,0.26376088,697.35,695.65,0.28750089]
[1736601068482,1.07547235,697.42,695.65,0.28750089]
[1736601068483,0.26376088,697.34,695.65,0.28750089]
[1736601068676,1.07547235,697.42,695.65,0.28750089]
[1736601068677,0.26376088,697.33,695.65,0.28750089]
[1736601068878,0.26376088,697.32,695.65,0.28750089]
[1736601069074,1.49881021,697.59,695.65,0.28750089]
[1736601069075,1.07547235,697.39,695.65,0.28750089]
[1736601069984,1.07547235,697.5,695.65,0.28750089]
[1736601070183,0.2637355,697.49,695.65,0.28750089]
[1736601070383,1.07547235,697.5,695.65,0.28750089]
[1736601070582,0.26373626,697.49,695.65,0.28750089]
[1736601070777,0.28674657,697.48,695.65,0.28750089]
[1736601070977,0.26373626,697.47,695.65,0.28750089]
[1736601072883,1.07547235,697.46,695.65,0.28750089]
[1736601073083,0.26373626,697.45,695.65,0.28750089]
[1736601074580,1.33920861,697.45,695.65,0.28750089]
[1736601074789,0.26373626,697.44,695.65,0.28750089]
[1736601075284,1.33920861,697.44,695.65,0.28750089]
[1736601075484,0.26373626,697.43,695.65,0.28750089]
[1736601076186,1.33920861,697.43,695.65,0.28750089]
[1736601076386,0.26373626,697.42,695.65,0.28750089]
[1736601077187,1.33920861,697.42,695.65,0.28750089]
[1736601077388,0.26373626,697.41,695.65,0.28750089]
[1736601077987,0.26374848,697.4,695.65,0.28750089]
[1736601078185,0.26374848,697.41,695.65,0.28750089]
[1736601078386,1.07547235,697.39,695.65,0.28750089]
[1736601078782,0.26375076,697.38,695.65,0.28750089]
[1736601079181,1.33922311,697.38,695.65,0.28750089]
[1736601079386,0.26375076,697.37,695.65,0.28750089]
[1736601080184,1.07547235,697.28,695.65,0.28750089]
[1736601080483,0.26375076,697.27,695.65,0.28750089]
[1736601080683,1.07547235,697.28,695.65,0.28750089]
[1736601080885,0.26375075,697.26,695.65,0.28750089]
[1736601081085,0.26375075,697.25,695.74,1.29015086]
[1736601081282,0.26375075,697.25,695.76,0.28745544]
[1736601082183,0.26375075,697.25,695.77,1.29015086]
[1736601082388,0.26375075,697.26,695.79,0.28744305]
[1736601083586,0.26375075,697.26,695.82,1.29015086]
[1736601083790,0.26375075,697.26,695.84,0.28742239]
[1736601084193,1.3392231,697.26,695.85,1.29015086]
[1736601084490,1.3392231,697.26,695.86,0.28741413]
[1736601085992,1.07547235,697.25,695.86,0.28741413]
[1736601087993,1.07547235,697.19,695.86,0.28741413]
[1736601089093,1.07547235,697.23,695.86,0.28741413]
[1736601090396,1.07547235,697.22,695.86,0.28741413]
[1736601091191,1.07547235,697.21,695.86,0.28741413]
[1736601093398,0.28674657,697.48,695.86,0.28741413]
[1736601093399,1.07547235,697.19,695.86,0.28741413]
[1736601093799,1.07547235,697.22,695.86,0.28741413]
[1736601094794,1.07547235,697.24,695.86,0.28741413]
[1736601095502,1.07547235,697.23,695.86,0.28741413]
[1736601097402,1.07547235,697.22,695.86,0.28741413]
[1736601098602,1.07547235,697.19,695.86,0.28741413]
[1736601100704,1.07547235,697.2,695.86,0.28741413]
[1736601101705,1.07547235,697.19,695.86,0.28741413]
[1736601103900,1.07547235,697.2,695.86,0.28741413]
[1736601104702,1.07547235,697.14,695.91,1.29015086]
[1736601104906,1.07547235,697.14,695.92,0.28738935]
[1736601105604,0.28675068,697.47,695.92,0.28738935]
[1736601105605,1.07547235,697.15,695.92,0.28738935]
[1736601108610,1.07547235,697.15,695.94,1.29015086]
[1736601108811,1.07547235,697.15,695.95,0.28737696]
[1736601109509,0.88970117,697.46,695.95,0.28737696]
[1736601109510,1.07547235,697.11,695.95,0.28737696]
[1736601110608,1.07547235,697.1,695.95,1.57752782]
[1736601112612,1.07547235,697.11,695.95,0.28737696]
[1736601113710,1.07547235,697.1,695.95,0.28737696]
[1736601116918,1.07547235,697.12,695.95,1.57752782]
[1736601117913,1.07547235,697.16,695.98,1.29015086]
[1736601118118,1.07547235,697.16,695.99,0.28736045]
[1736601119017,1.07547235,697.23,695.99,0.28736045]
[1736601120019,1.07547235,697.31,695.99,0.28736045]
[1736601120912,1.07547235,697.3,695.99,0.28736045]
[1736601122024,1.07547235,697.31,695.99,0.28736045]
[1736601123418,1.07547235,697.34,695.99,0.28736045]
[1736601124623,0.28675068,697.47,695.99,0.28736045]
[1736601124624,1.07547235,697.27,695.99,0.28736045]
[1736601125528,1.07547235,697.26,695.99,0.28736045]
[1736601128526,1.07547235,697.22,695.99,0.28736045]
[1736601130627,1.07547235,697.26,695.99,0.28736045]
[1736601132331,1.07547235,697.3,695.99,0.28736045]
[1736601133732,0.28675068,697.47,695.99,0.28736045]
[1736601133733,1.07547235,697.29,695.99,0.28736045]
[1736601134433,1.07547235,697.28,695.99,0.28736045]
[1736601137232,1.07547235,697.34,695.99,0.28736045]
[1736601138126,1.07547235,697.33,695.99,0.28736045]
[1736601139133,1.07547235,697.32,695.99,0.28736045]
[1736601140131,0.28675068,697.47,695.99,0.28736045]
[1736601140132,1.07547235,697.28,695.99,0.28736045]
[1736601140733,1.07547235,697.26,695.99,0.28736045]
[1736601142635,1.07547235,697.23,695.99,0.28736045]
[1736601143832,1.07547235,697.22,695.99,0.28736045]
[1736601147238,1.07547235,697.19,695.99,0.28736045]
[1736601148140,1.07431173,697.37,695.99,0.28736045]
[1736601148141,1.07547235,697.2,695.99,0.28736045]
[1736601148940,1.07547235,697.44,695.99,0.28736045]
[1736601149941,1.07547235,697.43,695.99,0.28736045]
[1736601152745,1.07547235,697.42,695.99,0.28736045]
[1736601153542,1.07547235,697.41,695.99,0.28736045]
[1736601154444,1.07547235,697.44,695.99,0.28736045]
[1736601156644,1.07547235,697.43,695.99,0.28736045]
[1736601157943,1.07547235,697.45,695.99,0.28736045]
[1736601159448,1.07547235,697.32,695.99,0.28736045]
[1736601159947,1.07547235,697.37,695.99,0.28736045]
[1736601160750,1.07547235,697.39,695.99,0.28736045]
[1736601161849,1.07547235,697.4,695.99,0.28736045]
[1736601162850,1.07547235,697.35,695.99,0.28736045]
[1736601163852,1.07547235,697.34,695.99,0.28736045]
[1736601164849,1.07547235,697.35,695.99,0.28736045]
[1736601165849,1.07547235,697.32,695.99,0.28736045]
[1736601166850,1.07547235,697.27,695.99,0.28736045]
[1736601169258,1.07547235,697.26,695.99,0.28736045]
[1736601170751,1.07547235,697.32,695.99,0.28736045]
[1736601171557,1.07547235,697.28,696.04,1.29015086]
[1736601171756,1.07547235,697.28,696.05,0.28733567]
[1736601172751,1.07547235,697.31,696.07,1.29015086]
[1736601172957,1.07547235,697.31,696.08,0.28732329]
[1736601173555,1.07547235,697.35,696.09,1.29015086]
[1736601173754,1.07547235,697.35,696.1,0.28731504]
[1736601174556,1.07547235,697.41,696.1,0.28731504]
[1736601175553,1.07547235,697.42,696.1,0.28731504]
[1736601177559,1.07547235,697.38,696.1,0.28731504]
[1736601179262,1.07547235,697.37,696.1,0.28731504]
[1736601182663,1.07547235,697.38,696.1,0.28731504]
[1736601183665,1.07547235,697.31,696.1,0.28731504]
[1736601186467,1.07547235,697.29,696.1,0.28731504]
[1736601188669,1.07547235,697.28,696.1,0.28731504]
[1736601190468,1.07547235,697.41,696.1,0.28731504]
[1736601191569,1.07547235,697.36,696.1,0.28731504]
[1736601192868,1.07547235,697.4,696.1,0.28731504]
[1736601193563,1.07547235,697.39,696.1,0.28731504]
[1736601194578,1.07547235,697.43,696.1,0.28731504]
[1736601195272,1.07547235,697.42,696.1,0.28731504]
[1736601197271,1.07547235,697.41,696.1,0.28731504]
[1736601198977,1.07547235,697.42,696.1,0.28731504]
[1736601199968,1.07547235,697.39,696.1,0.28731504]
[1736601200772,1.07547235,697.33,696.1,0.28731504]
[1736601201574,1.07547235,697.34,696.1,0.28731504]
[1736601203082,1.07547235,697.35,696.1,0.28731504]
[1736601205087,1.07547235,697.29,696.1,0.28731504]
[1736601206187,1.07547235,697.27,696.1,0.28731504]
[1736601207288,0.28675068,697.47,696.1,0.28731504]
[1736601207289,1.07547235,697.31,696.1,0.28731504]
[1736601208484,1.07547235,697.32,696.1,0.28731504]
[1736601210082,1.07547235,697.31,696.1,0.28731504]
[1736601212387,1.07547235,697.3,696.1,0.28731504]
[1736601214191,1.07547235,697.35,696.1,0.28731504]
[1736601215294,1.07547235,697.32,696.1,0.28731504]
[1736601217390,1.07547235,697.31,696.1,0.28731504]
[1736601221594,1.07547235,697.35,696.1,0.28731504]
[1736601222700,1.07547235,697.39,696.1,0.28731504]
[1736601224000,1.07547235,697.39,696.11,3.12603325]
[1736601224298,1.07547235,697.39,696.12,0.28730678]
[1736601224492,1.07547235,697.3,696.16,1.29015086]
[1736601224698,1.07547235,697.3,696.17,0.28728615]
[1736601225500,1.07547235,697.33,696.17,0.28728615]
[1736601226500,1.07547235,697.31,696.17,0.28728615]
[1736601228303,1.07547235,697.32,696.17,0.28728615]
[1736601229600,1.07547235,697.34,696.17,0.28728615]
[1736601230601,1.07547235,697.3,696.17,0.28728615]
[1736601231809,1.07547235,697.29,696.17,0.28728615]
[1736601234310,1.07547235,697.3,696.17,0.28728615]
[1736601236509,1.07547235,697.29,696.17,0.28728615]
[1736601238206,1.07547235,697.28,696.17,0.28728615]
[1736601238914,1.07547235,697.26,696.17,0.28728615]
[1736601241213,1.07547235,697.27,696.17,0.28728615]
[1736601242415,1.07547235,697.24,696.17,0.28728615]
[1736601246116,1.07547235,697.28,696.17,0.28728615]
[1736601249218,1.07547235,697.36,696.17,0.28728615]
[1736601251118,1.07547235,697.37,696.17,0.28728615]
[1736601252221,1.07547235,697.33,696.17,0.28728615]
[1736601253121,1.07547235,697.44,696.17,0.28728615]
[1736601255016,1.07547235,697.43,696.17,0.28728615]
[1736601256224,1.07547235,697.44,696.17,0.28728615]
[1736601257322,1.07547235,697.43,696.17,0.28728615]
[1736601259326,1.07547235,697.41,696.17,0.28728615]
[1736601260628,1.07547235,697.39,696.17,0.28728615]
[1736601262529,1.07547235,697.4,696.17,0.28728615]
[1736601263132,1.07547235,697.3,696.17,0.28728615]
[1736601264532,0.28675068,697.47,696.17,0.28728615]
[1736601264533,1.07547235,697.35,696.17,0.28728615]
[1736601265633,1.07547235,697.34,696.19,1.29015086]
[1736601265826,1.07547235,697.34,696.2,0.28727377]
[1736601266631,1.07547235,697.42,696.2,1.57742463]
[1736601268037,1.36222303,697.47,696.2,1.57742463]
[1736601269038,0.28675068,697.47,696.2,0.28727377]
[1736601293257,1.36222303,697.47,696.2,0.28727377]
[1736601294363,1.07547235,697.46,696.2,0.28727377]
[1736601295063,0.28675068,697.47,696.2,0.28727377]
[1736601296165,1.36222303,697.47,696.2,0.28727377]
[1736601298168,0.28675068,697.47,696.2,0.28727377]
[1736601299068,1.07547235,697.46,696.2,0.28727377]
[1736601300068,1.07547235,697.42,696.2,0.28727377]
[1736601300966,1.07547235,697.43,696.2,0.28727377]
[1736601302067,1.07547235,697.42,696.2,0.28727377]
[1736601302968,8.60490314,706.04,696.2,0.28727377]
[1736601302969,1.07547235,697.58,696.2,0.28727377]
[1736601303966,1.07547235,697.61,696.2,0.28727377]
[1736601305171,1.07547235,697.69,696.2,0.28727377]
[1736601306171,1.07547235,697.71,696.2,0.28727377]
[1736601306872,1.07547235,697.72,696.2,0.28727377]
[1736601307573,1.07547235,697.74,696.2,0.28727377]
[1736601308770,1.07547235,697.75,696.2,0.28727377]
[1736601309877,1.07547235,697.74,696.2,0.28727377]
[1736601310776,1.07431173,698.11,696.2,0.28727377]
[1736601310777,1.07547235,697.75,696.2,0.28727377]
[1736601311777,1.07547235,697.76,696.2,0.28727377]
[1736601312572,1.07547235,697.72,696.2,0.28727377]
[1736601313276,1.07547235,697.74,696.2,0.28727377]
[1736601313578,0.26356738,697.73,696.2,0.28727377]
[1736601314079,1.07547235,697.74,696.2,0.28727377]
[1736601314379,1.07547235,697.68,696.26,1.29015086]
[1736601314579,1.07547235,697.68,696.28,0.28724076]
[1736601318175,0.26358417,697.67,696.28,0.28724076]
[1736601318777,1.07547235,697.68,696.28,0.28724076]
[1736601318978,0.26361048,697.67,696.28,0.28724076]
[1736601319683,1.07547235,697.59,696.28,0.28724076]
[1736601320578,1.07431173,697.79,696.28,0.28724076]
[1736601320579,1.07547235,697.58,696.28,0.28724076]
[1736601324375,1.07547235,697.6,696.28,0.28724076]
[1736601326680,0.88862467,698.0,696.28,0.28724076]
[1736601326681,1.07547235,697.59,696.28,0.28724076]
[1736601327681,1.07547235,697.61,696.28,0.28724076]
[1736601328584,1.07547235,697.6,696.28,0.28724076]
[1736601329581,1.07547235,697.58,696.28,0.28724076]
[1736601330384,1.07547235,697.57,696.28,0.28724076]
[1736601331285,1.07547235,697.6,696.28,0.28724076]
[1736601332389,1.07547235,697.61,696.28,0.28724076]
[1736601333391,1.07547235,697.59,696.28,0.28724076]
[1736601334690,1.07547235,697.62,696.28,0.28724076]
[1736601335692,1.07547235,697.63,696.28,0.28724076]
[1736601336995,0.28668902,697.62,696.28,0.28724076]
[1736601337496,0.26367008,697.61,696.28,0.28724076]
[1736601337797,0.28668902,697.62,696.28,0.28724076]
[1736601338096,0.26367344,697.61,696.28,0.28724076]
[1736601338394,0.28669724,697.6,696.28,0.28724076]
[1736601338590,0.26367427,697.59,696.28,0.28724076]
[1736601338787,1.07547235,697.48,696.28,0.28724076]
[1736601340193,0.28670546,697.58,696.28,0.28724076]
[1736601348899,0.26367736,697.57,696.28,0.28724076]
[1736601349095,0.28671368,697.56,696.28,0.28724076]
[1736601351303,0.26367428,697.55,696.28,0.28724076]
[1736601351498,0.2867219,697.54,696.28,0.28724076]
[1736601351698,0.2636746,697.53,696.28,0.28724076]
[1736601351904,1.07547235,697.51,696.28,0.28724076]
[1736601352604,1.07547235,697.5,696.28,0.28724076]
[1736601353704,1.07547235,697.51,696.28,0.28724076]
[1736601354003,0.2636719,697.5,696.28,0.28724076]
[1736601354198,1.07547235,697.51,696.28,0.28724076]
[1736601354402,0.26367311,697.5,696.28,0.28724076]
[1736601354600,1.07547235,697.48,696.28,0.28724076]
[1736601355505,1.07547235,697.47,696.28,0.28724076]
[1736601356301,1.07547235,697.49,696.28,0.28724076]
[1736601356906,0.26367032,697.48,696.28,0.28724076]
[1736601357108,1.07547235,697.49,696.28,0.28724076]
[1736601357406,0.2867219,697.54,696.28,0.28724076]
[1736601357407,1.07547235,697.47,696.28,0.28724076]
[1736601358308,1.07547235,697.52,696.28,0.28724076]
[1736601358509,0.26368324,697.51,696.28,0.28724076]
[1736601359410,1.07547235,697.49,696.28,0.28724076]
[1736601359709,0.26368324,697.48,696.28,0.28724076]
[1736601360509,1.07547235,697.46,696.28,0.28724076]
[1736601361408,1.07547235,697.45,696.28,0.28724076]
[1736601363409,1.07547235,697.49,696.28,0.28724076]
[1736601364102,1.07547235,697.5,696.28,0.28724076]
[1736601364904,0.28674246,697.49,696.28,0.28724076]
[1736601365105,1.07547235,697.46,696.28,0.28724076]
[1736601366208,1.07547235,697.45,696.28,0.28724076]
[1736601367210,1.07547235,697.43,696.28,0.28724076]
[1736601368009,0.28674246,697.49,696.28,0.28724076]
[1736601368010,1.07547235,697.41,696.28,0.28724076]
[1736601368711,1.07547235,697.38,696.28,0.28724076]
[1736601369913,1.07547235,697.36,696.28,0.28724076]
[1736601370713,1.07547235,697.35,696.28,0.28724076]
[1736601371917,1.07547235,697.33,696.28,0.28724076]
[1736601372511,1.07547235,697.27,696.28,0.28724076]
[1736601373316,0.28674246,697.49,696.28,0.28724076]
[1736601373317,1.07547235,697.25,696.28,0.28724076]
[1736601375218,1.07547235,697.26,696.28,0.28724076]
[1736601376112,1.07547235,697.25,696.28,0.28724076]
[1736601377316,0.89000007,697.48,696.28,0.28724076]
[1736601377317,1.07547235,697.2,696.28,0.28724076]
[1736601377717,1.07547235,697.2,695.91,1.29015086]
[1736601378514,1.07547235,697.19,695.91,0.28739348]
[1736601379414,1.07547235,697.31,695.91,0.28739348]
[1736601380217,1.07547235,697.33,695.91,0.28739348]
[1736601380420,1.3622806,697.33,695.91,0.28739348]
[1736601381020,0.28680825,697.33,695.91,0.28739348]
[1736601384221,0.2637681,697.32,695.91,0.28739348]
[1736601384426,0.28680825,697.33,695.91,0.28739348]
[1736601398630,0.26382591,697.32,695.91,0.28739348]
[1736601399032,0.28681648,697.31,695.91,0.28739348]
[1736601399336,0.26382591,697.3,695.91,0.28739348]
[1736601399537,1.07547235,697.22,695.91,0.28739348]
[1736601399830,0.26383765,697.21,695.91,0.28739348]
[1736601400937,1.07547235,697.1,695.91,0.28739348]
[1736601401236,0.26383765,697.09,695.91,0.28739348]
[1736601401437,1.07547235,697.1,695.91,0.28739348]
[1736601401936,1.07547235,697.15,695.91,0.28739348]
[1736601402733,1.07547235,697.22,695.91,0.28739348]
[1736601402934,0.55070077,697.21,695.91,0.28739348]
[1736601403131,0.26384316,697.2,695.91,0.28739348]
[1736601404935,0.26384093,697.19,695.91,0.28739348]
[1736601405132,0.28685761,697.21,695.91,0.28739348]
[1736601405133,0.26384093,697.18,695.91,0.28739348]
[1736601405333,0.28685761,697.21,695.91,0.28739348]
[1736601405537,0.26384501,697.2,695.91,0.28739348]
[1736601405838,1.33931736,697.2,695.91,0.28739348]
[1736601406040,0.26384501,697.19,695.91,0.28739348]
[1736601406443,1.07547235,697.2,695.91,0.28739348]
[1736601406848,1.36232996,697.21,695.91,0.28739348]
[1736601407048,0.26383739,697.2,695.91,0.28739348]
[1736601407744,1.07547235,697.18,695.91,0.28739348]
[1736601409346,0.26384576,697.17,695.91,0.28739348]
[1736601409545,1.36235054,697.16,695.91,0.28739348]
[1736601409746,0.55072806,697.15,695.91,0.28739348]
[1736601409947,0.2868823,697.15,695.91,0.28739348]
[1736601410245,1.07547235,697.12,695.91,0.28739348]
[1736601410544,0.26385006,697.11,695.91,0.28739348]
[1736601411143,0.26385246,697.1,695.91,0.28739348]
[1736601411347,0.26385246,697.09,695.91,0.28739348]
[1736601411542,1.33932481,697.08,695.91,0.28739348]
[1736601411748,0.26385246,697.07,695.91,0.28739348]
[1736601412548,1.07547235,696.97,695.91,0.28739348]
[1736601413552,1.07547235,696.95,695.91,0.28739348]
[1736601415553,1.07547235,696.94,695.91,0.28739348]
[1736601417254,0.2868823,697.15,695.91,0.28739348]
[1736601417255,1.07547235,697.11,695.91,0.28739348]
[1736601419556,0.2868823,697.15,695.91,0.28739348]
[1736601419557,1.07547235,697.1,695.91,0.28739348]
[1736601420152,1.07547235,697.09,695.91,0.28739348]
[1736601421258,1.07547235,697.06,695.91,0.28739348]
[1736601422260,1.07547235,697.03,695.91,0.28739348]
[1736601422659,0.26388202,697.02,695.91,0.28739348]
[1736601423160,1.07547235,697.03,695.91,0.28739348]
[1736601423161,1.07547235,696.83,695.91,0.28739348]
[1736601424360,1.07547235,696.79,695.91,0.28739348]
[1736601425361,1.07547235,696.86,695.91,0.28739348]
[1736601425954,1.07547235,696.87,695.91,0.28739348]
[1736601426861,1.07547235,696.87,695.32,2.00935237]
[1736601427053,1.07547235,696.87,695.31,3.11744826]
[1736601427054,1.07547235,696.91,695.34,0.28762907]
[1736601428259,1.07547235,696.9,695.34,0.28762907]
[1736601429359,1.07547235,696.89,695.34,0.28762907]
[1736601430062,1.07547235,696.91,695.34,0.28762907]
[1736601431158,1.07547235,696.92,695.34,0.28762907]
[1736601432260,1.07547235,696.93,695.34,0.28762907]
[1736601432461,0.5509004,696.92,695.34,0.28762907]
[1736601432662,0.26392342,696.91,695.34,0.28762907]
[1736601433163,1.07547235,696.85,695.34,0.28762907]
[1736601435265,1.07547235,696.86,695.34,0.28762907]
[1736601435563,0.26393678,696.85,695.34,0.28762907]
[1736601436161,1.07547235,696.83,695.34,0.28762907]
[1736601436658,0.2639398,696.82,695.34,0.28762907]
[1736601436963,1.07547235,696.83,695.34,0.28762907]
[1736601437262,0.26393958,696.82,695.34,0.28762907]
[1736601437463,1.07547235,696.83,695.34,0.28762907]
[1736601438058,1.07547235,696.86,695.34,0.28762907]
[1736601438562,0.26395763,696.85,695.34,0.28762907]
[1736601438967,1.33942998,696.85,695.34,0.28762907]
[1736601439162,0.26395763,696.84,695.34,0.28762907]
[1736601439759,0.28701404,696.83,695.34,0.28762907]
[1736601440065,1.07547235,696.81,695.34,0.28762907]
[1736601440265,0.55098403,696.8,695.34,0.28762907]
[1736601440461,0.28703052,696.79,695.34,0.28762907]
[1736601443661,0.263996,696.78,695.34,0.28762907]
[1736601443865,0.28703052,696.79,695.34,0.28762907]
[1736601444364,0.26399442,696.78,695.34,0.28762907]
[1736601445569,0.26395637,696.77,695.34,0.28762907]
[1736601445767,0.26395637,696.76,695.34,0.28762907]
[1736601445968,0.28703052,696.79,695.34,0.28762907]
[1736601445969,0.26395637,696.75,695.34,0.28762907]
[1736601446263,0.28703052,696.79,695.34,0.28762907]
[1736601457773,1.07547235,696.77,695.34,0.28762907]
[1736601458867,1.07547235,696.76,695.34,0.28762907]
[1736601459666,1.07547235,696.75,695.34,0.28762907]
[1736601460667,1.07547235,696.77,695.34,0.28762907]
[1736601461472,1.07547235,696.76,695.34,0.28762907]
[1736601462173,0.28703052,696.79,695.34,0.28762907]
[1736601472477,1.07547235,696.78,695.34,0.28762907]
[1736601473477,1.36250287,696.79,695.34,0.28762907]
[1736601474171,0.28703052,696.79,695.34,0.28762907]
[1736601478879,0.28703052,696.79,695.36,1.29015086]
[1736601479876,0.28703052,696.79,695.38,1.29015086]
[1736601480278,0.28703052,696.79,695.4,0.28760425]
[1736601481981,0.28703052,696.79,695.47,1.29015086]
[1736601482478,0.28703052,696.79,695.49,0.28756703]
[1736601489984,1.07547235,697.07,695.49,0.28756703]
[1736601490383,1.07547235,697.09,695.49,0.28756703]
[1736601490978,1.07547235,697.1,695.49,0.28756703]
[1736601492585,1.49927836,697.38,695.49,0.28756703]
[1736601492586,1.07547235,697.11,695.49,0.28756703]
[1736601493487,1.07547235,697.18,695.49,0.28756703]
[1736601494486,1.07547235,697.19,695.49,0.28756703]
[1736601495582,1.07547235,697.2,695.49,0.28756703]
[1736601496391,1.07547235,697.19,695.49,0.28756703]
[1736601497286,1.07547235,697.16,695.49,0.28756703]
[1736601499393,1.07547235,697.14,695.49,0.28756703]
[1736601500483,1.07547235,697.24,695.49,0.28756703]
[1736601500887,1.07547235,697.23,695.49,0.28756703]
[1736601501285,0.2868535,697.22,695.49,0.28756703]
[1736601501490,0.26385493,697.21,695.49,0.28756703]
[1736601501690,0.28686173,697.2,695.49,0.28756703]
[1736601501891,0.26385493,697.19,695.49,0.28756703]
[1736601502093,0.28686996,697.18,695.49,0.28756703]
[1736601502293,0.26386367,697.17,695.49,0.28756703]
[1736601502493,0.28687819,697.16,695.49,0.28756703]
[1736601502797,0.26386367,697.15,695.49,0.28756703]
[1736601502998,1.07547235,697.07,695.49,0.28756703]
[1736601504401,0.28688642,697.14,695.49,0.28756703]
[1736601504402,1.07547235,697.05,695.49,0.28756703]
[1736601505101,1.07547235,697.04,695.49,0.28756703]
[1736601506302,0.28688642,697.14,695.49,0.28756703]
[1736601506303,1.07547235,697.03,695.49,0.28756703]
[1736601507000,1.07547235,697.01,695.49,0.28756703]
[1736601508103,1.07547235,697.0,695.49,0.28756703]
[1736601508599,0.26387067,696.99,695.49,0.28756703]
[1736601509106,1.07547235,697.0,695.49,0.28756703]
[1736601509407,1.07547235,696.79,695.49,0.28756703]
[1736601510400,1.07431173,697.06,695.49,0.28756703]
[1736601510401,1.07547235,696.78,695.49,0.28756703]
[1736601511305,1.07547235,696.8,695.49,0.28756703]
[1736601511904,1.07547235,696.9,695.49,0.28756703]
[1736601513603,1.07547235,696.91,695.49,0.28756703]
[1736601514505,1.07547235,696.9,695.49,0.28756703]
[1736601515405,0.28688642,697.14,695.49,0.28756703]
[1736601515406,1.07547235,696.94,695.49,0.28756703]
[1736601517302,1.07547235,696.95,695.49,0.28756703]
[1736601518006,1.07547235,697.0,695.49,0.28756703]
[1736601518904,1.07547235,697.05,695.49,0.28756703]
[1736601519107,0.26383993,697.04,695.49,0.28756703]
[1736601520214,1.07547235,696.97,695.54,1.29015086]
[1736601520508,1.07547235,696.97,695.56,0.28753809]
[1736601521611,1.07547235,696.98,695.56,0.28753809]
[1736601522410,1.07547235,697.08,695.56,0.28753809]
[1736601522806,1.07547235,697.07,695.56,0.28753809]
[1736601523717,1.07547235,697.04,695.56,0.28753809]
[1736601525017,1.07547235,697.02,695.56,0.28753809]
[1736601526217,1.07547235,697.01,695.56,0.28753809]
[1736601527416,1.07547235,697.02,695.56,0.28753809]